bitfinex-derivatives/quotes_SOLF0:USTF0_20220110
["timestamp","ask_amount","ask_price","bid_price","bid_amount"]
[1641794343972,2.53776861,143.0,142.98,1.13281556]
[1641794344172,6.71179505,143.04,142.98,1.13281556]
[1641794344770,3.96250783,143.03,142.98,1.13281556]
[1641794345170,3.96250783,143.03,142.99,2.40738039]
[1641794345572,3.96250783,143.03,143.0,1.13281556]
[1641794346273,3.96250783,143.03,143.0,9.26481556]
[1641794346775,3.96250783,143.03,143.0,8.132]
[1641794347175,3.96250783,143.03,143.01,1.1314486]
[1641794347774,3.96250783,143.04,143.0,1.1314486]
[1641794347975,7.366,143.03,143.0,1.1314486]
[1641794348375,3.96250783,143.02,143.0,1.1314486]
[1641794348576,3.96250783,143.02,143.01,2.39987275]
[1641794349179,3.96250783,143.04,143.01,3.53132135]
[1641794349477,3.96250783,143.04,143.02,1.1314486]
[1641794350879,3.96250783,143.04,143.0,1.1314486]
[1641794352781,7.96250783,143.04,143.0,1.1314486]
[1641794352982,4.0,143.03,142.96,42.54830318]
[1641794353181,1.748,143.02,142.96,42.54830318]
[1641794353581,5.71050783,143.02,142.97,3.53115345]
[1641794354080,3.96250783,143.01,142.98,1.13259595]
[1641794354883,3.96250783,143.01,142.97,1.13259595]
[1641794357085,3.96250783,143.02,142.97,1.13259595]
[1641794359285,3.96250783,143.02,142.98,2.39991465]
[1641794359590,3.96250783,143.02,142.99,1.13259595]
[1641794361087,3.96250783,143.02,142.96,1.13259595]
[1641794361290,3.96250783,143.02,143.0,1.13259595]
[1641794361788,3.96250783,143.02,142.96,1.13259595]
[1641794362388,3.96250783,143.02,142.97,2.4009208]
[1641794362889,3.96250783,143.02,142.98,1.13259595]
[1641794364190,3.96250783,143.02,142.96,1.13259595]
[1641794365193,3.96250783,143.02,142.97,2.40240458]
[1641794365692,3.96250783,143.02,142.98,1.13259595]
[1641794366993,3.96250783,143.02,142.96,1.13259595]
[1641794367293,3.96250783,143.02,142.99,2.40290343]
[1641794367695,3.96250783,143.02,143.0,1.13259595]
[1641794368794,3.96250783,143.02,142.98,28.79738595]
[1641794368996,3.96250783,143.02,142.98,27.66479]
[1641794369498,3.96250783,143.02,142.99,1.13196122]
[1641794369697,3.96250783,143.02,142.99,3.53525565]
[1641794370301,3.96250783,143.02,143.0,1.13196122]
[1641794370698,3.96250783,143.02,142.99,1.13196122]
[1641794373402,3.96250783,143.02,143.0,2.40415186]
[1641794373902,3.96250783,143.02,143.01,1.13196122]
[1641794375307,3.96250783,143.02,142.99,1.13196122]
[1641794376010,3.96250783,143.02,143.0,2.40459309]
[1641794376608,3.96250783,143.02,143.01,1.13196122]
[1641794377412,3.96250783,143.02,143.01,3.53655431]
[1641794382818,3.96250783,143.04,143.01,3.53655431]
[1641794383319,3.96250783,143.04,143.01,2.40459309]
[1641794383821,3.96250783,143.04,142.98,24.59843451]
[1641794384221,3.96250783,143.04,142.99,1.13169798]
[1641794385023,3.96250783,143.04,143.0,2.40734677]
[1641794385424,3.96250783,143.04,143.01,1.13169798]
[1641794386824,3.96250783,143.04,142.99,1.13169798]
[1641794387326,13.55537796,143.04,142.99,1.13169798]
[1641794387623,5.71050783,143.03,142.99,1.13169798]
[1641794387824,1.748,143.02,142.99,1.13169798]
[1641794388226,6.83777425,143.03,142.99,1.13169798]
[1641794388626,6.83777425,143.03,142.97,60.40779]
[1641794388929,6.50095341,143.02,142.98,1.96443405]
[1641794389533,3.96268699,143.01,142.98,1.96443405]
[1641794389828,3.96268699,143.01,142.99,2.40804768]
[1641794390530,3.96268699,143.02,142.99,2.40804768]
[1641794391331,3.96268699,143.02,142.98,2.40804768]
[1641794391732,3.96268699,143.02,142.99,1.13230342]
[1641794393333,3.96268699,143.02,142.98,1.13230342]
[1641794394333,3.96268699,143.02,142.99,2.40753248]
[1641794395433,3.96268699,143.02,143.0,1.96437621]
[1641794396033,3.96268699,143.02,142.98,2.40753248]
[1641794396434,3.96268699,143.02,142.99,1.96440052]
[1641794397736,3.96268699,143.02,142.98,1.96440052]
[1641794397936,4.0,143.0,142.98,1.96440052]
[1641794398136,5.784,143.0,142.98,1.96440052]
[1641794398438,11.37876333,143.0,142.98,1.96440052]
[1641794398638,3.96268699,142.99,142.97,1.96440052]
[1641794398836,3.96268699,142.99,142.94,59.80219]
[1641794398837,4.0,142.98,142.94,14.88351318]
[1641794399037,15.30571921,142.99,142.94,14.88351318]
[1641794399438,27.66479,142.97,142.94,14.88351318]
[1641794399738,36.46279,142.97,142.94,14.88351318]
[1641794399940,36.46279,142.97,142.92,14.88351318]
[1641794400138,3.96383067,142.96,142.95,1.57256768]
[1641794400538,3.96383067,142.96,142.93,1.57256768]
[1641794400738,3.96383067,142.96,142.95,2.40697963]
[1641794401441,3.96383067,142.98,142.95,3.97954731]
[1641794401840,3.96383067,142.98,142.96,1.57256768]
[1641794402744,3.96383067,142.98,142.97,2.40697963]
[1641794403143,3.96383067,142.98,142.97,3.97954731]
[1641794403341,3.96383067,142.98,142.97,1.57256768]
[1641794403541,3.96383067,143.0,142.97,1.57256768]
[1641794404744,3.96383067,143.0,142.95,1.57256768]
[1641794405346,3.96383067,143.0,142.98,1.57256768]
[1641794406347,3.96383067,143.01,142.95,1.57256768]
[1641794406547,5.895,143.0,142.95,1.57256768]
[1641794407249,3.96383067,142.99,142.95,1.57256768]
[1641794407651,3.96383067,142.99,142.96,2.40375297]
[1641794408149,3.96383067,142.99,142.97,1.57256768]
[1641794408750,13.5586606,142.99,142.97,1.57256768]
[1641794409151,1.748,142.98,142.97,1.57256768]
[1641794409352,1.748,142.98,142.94,1.57256768]
[1641794409552,9.71183067,142.98,142.94,1.57256768]
[1641794409751,5.71183067,142.98,142.94,1.57256768]
[1641794410352,3.96383067,142.97,142.94,1.57256768]
[1641794410753,3.96383067,142.97,142.95,2.40384465]
[1641794411152,3.96383067,142.98,142.96,1.57256768]
[1641794412454,3.96383067,142.99,142.96,1.57256768]
[1641794412854,3.96383067,143.0,142.96,1.57256768]
[1641794413353,3.96383067,143.01,142.96,1.57256768]
[1641794413753,3.96383067,143.01,142.94,1.57256768]
[1641794413954,3.96383067,143.01,142.94,29.23735768]
[1641794414556,3.96383067,143.01,142.95,3.97686016]
[1641794414956,3.96383067,143.01,142.96,1.57256768]
[1641794415158,3.96383067,143.01,142.96,3.97686016]
[1641794415858,3.96383067,143.01,142.97,3.97686016]
[1641794416559,3.96383067,143.01,142.98,3.97686016]
[1641794417163,3.96383067,143.02,142.99,1.57256768]
[1641794417361,3.96383067,143.02,142.99,3.97686016]
[1641794418162,3.96383067,143.02,143.0,1.57256768]
[1641794418562,3.96383067,143.02,142.97,1.57256768]
[1641794418762,10.59483067,143.02,142.97,1.57256768]
[1641794418962,10.59483067,143.02,142.97,26.16564813]
[1641794419166,14.59483067,143.02,142.97,26.16564813]
[1641794419363,3.96383067,143.01,142.98,1.57256768]
[1641794419563,7.96383067,143.01,142.98,1.57256768]
[1641794419962,31.66479,142.99,142.94,14.88351318]
[1641794420163,1.748,142.98,142.94,14.88351318]
[1641794420762,1.748,142.98,142.93,2.40587604]
[1641794421564,3.96411605,142.97,142.94,1.5532095]
[1641794422765,3.96411605,142.97,142.95,2.40587604]
[1641794423365,3.96411605,142.97,142.96,1.5532095]
[1641794424267,3.96411605,142.97,142.93,1.5532095]
[1641794424567,3.96411605,142.97,142.96,1.5532095]
[1641794425168,3.96411605,142.97,142.94,1.5532095]
[1641794425568,3.96411605,142.97,142.93,1.5532095]
[1641794425771,9.55995217,142.97,142.93,1.5532095]
[1641794425972,13.55995217,142.97,142.95,1.5532095]
[1641794426173,5.00665622,142.95,142.91,14.88351318]
[1641794426370,11.90665622,142.95,142.91,14.88351318]
[1641794426575,10.9,142.95,142.91,14.88351318]
[1641794426772,6.9,142.95,142.91,14.88351318]
[1641794426973,10.9,142.95,142.9,2.40566062]
[1641794427775,7.96539477,142.94,142.91,0.89805281]
[1641794427975,1.749,142.93,142.91,0.89805281]
[1641794428176,27.66479,142.92,142.91,0.89805281]
[1641794428575,33.88779,142.92,142.91,0.89805281]
[1641794428777,37.85318477,142.92,142.91,0.89805281]
[1641794429176,37.85318477,142.92,142.88,0.89805281]
[1641794429577,3.96539477,142.91,142.88,0.89805281]
[1641794430379,3.96539477,142.91,142.89,2.4030327]
[1641794430779,3.96539477,142.91,142.9,0.89805281]
[1641794431381,3.96539477,142.91,142.9,5.281e-05]
[1641794431780,9.56369013,142.91,142.85,14.88351318]
[1641794432079,5.59829536,142.91,142.85,14.88351318]
[1641794432279,9.59829536,142.91,142.85,14.88351318]
[1641794432480,4.0,142.9,142.84,2.40144873]
[1641794432681,7.96595467,142.9,142.86,0.83389023]
[1641794433081,3.96595467,142.89,142.85,0.83389023]
[1641794433281,10.85095467,142.89,142.85,0.83389023]
[1641794433882,3.96595467,142.88,142.84,0.83389023]
[1641794434882,3.96595467,142.88,142.85,2.39661662]
[1641794435284,3.96595467,142.88,142.86,0.83389023]
[1641794435783,3.96595467,142.9,142.86,0.83389023]
[1641794437586,3.96595467,142.9,142.84,0.83389023]
[1641794438788,3.96595467,142.9,142.85,2.39551451]
[1641794439189,3.96595467,142.9,142.86,0.83389023]
[1641794440289,27.66479,142.89,142.86,0.83389023]
[1641794440892,3.96595467,142.88,142.86,0.83389023]
[1641794441293,3.96595467,142.88,142.84,0.83389023]
[1641794442293,10.91295467,142.88,142.84,0.83389023]
[1641794442894,3.96595467,142.87,142.85,2.39489159]
[1641794443393,3.96595467,142.87,142.86,0.83389023]
[1641794444294,6.947,142.88,142.86,0.83389023]
[1641794444494,4.0,142.87,142.86,0.83389023]
[1641794444695,31.66479,142.87,142.86,9.023e-05]
[1641794444896,5.59981604,142.86,142.81,14.88351318]
[1641794445094,35.63118828,142.87,142.84,0.79327966]
[1641794445495,4.0,142.86,142.81,14.88351318]
[1641794446000,4.0,142.86,142.79,33.9591]
[1641794446495,3.96665689,142.85,142.8,0.79333138]
[1641794446897,3.96665689,142.86,142.8,3.19050419]
[1641794447096,7.96665689,142.86,142.8,3.19050419]
[1641794447596,7.96665689,142.86,142.81,0.79333138]
[1641794447796,9.71665689,142.86,142.81,3.19050419]
[1641794447997,3.96665689,142.85,142.81,3.19050419]
[1641794448399,3.96665689,142.85,142.82,0.79333138]
[1641794448596,3.96665689,142.85,142.82,3.19050419]
[1641794449198,3.96665689,142.85,142.83,0.79333138]
[1641794450099,3.96665689,142.85,142.8,0.79333138]
[1641794450299,12.79865689,142.85,142.8,0.79333138]
[1641794450901,3.96665689,142.84,142.8,0.79333138]
[1641794451101,3.96665689,142.84,142.81,2.40040315]
[1641794451402,3.96665689,142.84,142.82,0.79333138]
[1641794452903,31.63144689,142.84,142.82,0.79333138]
[1641794453505,3.96665689,142.83,142.8,0.79333138]
[1641794454406,27.66479,142.84,142.8,0.79333138]
[1641794455008,47.9671626,142.85,142.8,0.79333138]
[1641794455411,3.96671613,142.84,142.8,0.79333138]
[1641794456112,3.96671613,142.84,142.8,25.38123756]
[1641794456511,3.96671613,142.84,142.81,0.79333138]
[1641794458514,3.96671613,142.84,142.81,9.48633138]
[1641794458914,3.96671613,142.84,142.82,0.79333138]
[1641794459316,3.96671613,142.85,142.82,0.79333138]
[1641794460117,3.96671613,142.85,142.82,4.79333138]
[1641794460316,7.34861177,142.9,142.82,4.79333138]
[1641794460517,5.59861177,142.9,142.83,0.79333138]
[1641794460718,3.9658844,142.87,142.83,15.67684456]
[1641794460916,3.9658844,142.87,142.84,27.66479]
[1641794461117,5.59861177,142.9,142.83,14.88351318]
[1641794461716,3.96581354,142.89,142.84,16.25118319]
[1641794462117,3.96581354,142.89,142.85,1.36767001]
[1641794462318,7.96581354,142.89,142.85,1.36767001]
[1641794462919,31.63060354,142.88,142.85,1.36767001]
[1641794463118,33.37960354,142.88,142.85,1.36767001]
[1641794463317,3.96581354,142.87,142.85,1.36767001]
[1641794463718,3.96581354,142.88,142.85,1.36767001]
[1641794464320,3.96581354,142.89,142.84,1.36767001]
[1641794464821,3.96581354,142.89,142.84,16.25118319]
[1641794465222,3.96581354,142.89,142.85,1.36767001]
[1641794469130,3.96581354,142.89,142.86,2.40604242]
[1641794469632,3.96581354,142.89,142.87,1.36767001]
[1641794470232,5.59942924,142.88,142.87,1.36767001]
[1641794470833,9.56524278,142.88,142.85,1.36767001]
[1641794471231,3.96581354,142.87,142.85,1.36767001]
[1641794472234,3.96581354,142.89,142.85,1.36767001]
[1641794472634,3.96581354,142.9,142.85,1.36767001]
[1641794475538,3.96581354,142.9,142.85,11.19967001]
[1641794475737,3.96581354,142.9,142.85,7.19967001]
[1641794476138,3.96581354,142.91,142.86,16.25118319]
[1641794476537,3.96581354,142.91,142.87,1.36767001]
[1641794479442,3.96581354,142.91,142.85,42.54830318]
[1641794479443,3.96581354,142.91,142.86,1.36767001]
[1641794479643,11.17481354,142.91,142.86,1.36767001]
[1641794480443,3.96581354,142.9,142.86,1.36767001]
[1641794483747,7.96581354,142.9,142.86,1.36767001]
[1641794484145,3.96581354,142.9,142.86,1.36767001]
[1641794484445,3.96581354,142.89,142.86,1.36767001]
[1641794484846,3.96581354,142.9,142.86,1.36767001]
[1641794485045,3.96581354,142.9,142.86,16.25118319]
[1641794485645,9.5642219,142.9,142.87,1.36767001]
[1641794486048,3.96581354,142.89,142.87,1.36767001]
[1641794486348,4.0,142.88,142.87,7.001e-05]
[1641794486545,17.54424007,142.88,142.86,14.88351318]
[1641794486748,17.54424007,142.88,142.86,16.25169926]
[1641794486946,45.20903007,142.88,142.86,16.25169926]
[1641794487146,45.20903007,142.88,142.86,14.88351318]
[1641794487348,43.46003007,142.88,142.86,14.88351318]
[1641794487548,43.46003007,142.88,142.82,42.54830318]
[1641794487947,3.96650132,142.87,142.83,1.35472652]
[1641794488546,3.96650132,142.87,142.83,16.2382397]
[1641794489147,3.96650132,142.87,142.84,1.35472652]
[1641794489649,3.96650132,142.87,142.84,16.2382397]
[1641794490051,3.96650132,142.87,142.85,1.35472652]
[1641794498263,3.96650132,142.87,142.84,1.35472652]
[1641794498464,10.86450132,142.87,142.84,1.35472652]
[1641794498663,10.86450132,142.87,142.83,14.88351318]
[1641794498664,10.86450132,142.87,142.85,1.35472652]
[1641794499167,6.898,142.87,142.86,1.35472652]
[1641794500268,10.898,142.87,142.86,1.35472652]
[1641794500468,10.898,142.87,142.83,14.88351318]
[1641794500469,4.24526752,142.86,142.83,14.88351318]
[1641794500670,8.647,142.87,142.83,14.88351318]
[1641794501070,36.31179,142.87,142.83,14.88351318]
[1641794501272,8.647,142.87,142.83,14.88351318]
[1641794501474,8.647,142.87,142.82,14.88351318]
[1641794501673,6.898,142.87,142.84,0.79671339]
[1641794502072,6.898,142.87,142.83,0.79671339]
[1641794502374,6.898,142.87,142.83,15.68022657]
[1641794503073,6.898,142.87,142.84,0.79671339]
[1641794503574,68.5456197,142.89,142.84,3.20420415]
[1641794503976,72.5456197,142.89,142.85,0.79671339]
[1641794504180,70.7956197,142.89,142.85,3.20420415]
[1641794504776,70.7956197,142.89,142.86,0.79671339]
[1641794504977,70.7956197,142.89,142.86,3.20420415]
[1641794504978,43.1308297,142.89,142.86,3.20420415]
[1641794505479,66.7956197,142.89,142.86,3.20420415]
[1641794505678,66.7956197,142.89,142.87,0.79671339]
[1641794505679,34.3835197,142.89,142.87,0.79671339]
[1641794506079,5.59941898,142.88,142.84,0.79671339]
[1641794507187,5.59941898,142.88,142.85,2.40710141]
[1641794507978,5.59941898,142.88,142.86,0.79671339]
[1641794508679,5.59941898,142.88,142.87,2.40710141]
[1641794509181,5.59941898,142.88,142.87,3.2038148]
[1641794511082,5.59941898,142.88,142.84,14.88351318]
[1641794511284,5.59941898,142.88,142.82,14.88351318]
[1641794511583,5.59941898,142.88,142.85,0.79673276]
[1641794512085,5.59941898,142.88,142.83,0.79673276]
[1641794512785,5.59941898,142.88,142.84,2.40864009]
[1641794513285,5.59941898,142.88,142.85,0.79673276]
[1641794514386,3.96670904,142.87,142.86,2.40864009]
[1641794514786,3.96670904,142.87,142.86,3.20537285]
[1641794517390,5.60030043,142.85,142.84,14.88351318]
[1641794517590,11.35530043,142.85,142.84,14.88351318]
[1641794517790,11.35530043,142.85,142.82,9.72145981]
[1641794517991,27.66479,142.83,142.82,9.72145981]
[1641794518490,27.66479,142.83,142.78,9.72145981]
[1641794518690,3.96718929,142.83,142.82,0.79343786]
[1641794519697,3.96718929,142.84,142.79,0.79343786]
[1641794520594,3.96718929,142.84,142.79,10.51489767]
[1641794520896,3.96718929,142.84,142.8,0.79343786]
[1641794522298,3.96718929,142.85,142.8,0.79343786]
[1641794523694,3.96718929,142.87,142.8,0.79343786]
[1641794523894,3.96718929,142.87,142.8,32.56913786]
[1641794524096,3.96718929,142.88,142.82,27.66479]
[1641794524298,3.96718929,142.88,142.82,31.66479]
[1641794524697,3.96718929,142.88,142.83,0.79343786]
[1641794525899,3.96718929,142.88,142.83,10.5098091]
[1641794526299,3.96718929,142.88,142.84,0.79343786]
[1641794526501,3.96718929,142.88,142.85,4.0]
[1641794526700,3.96718929,142.89,142.85,7.139]
[1641794527300,3.96718929,142.89,142.86,4.0]
[1641794527501,3.96718929,142.92,142.86,4.79343786]
[1641794528101,3.96718929,142.92,142.87,28.45822786]
[1641794528301,3.96718929,142.92,142.87,32.45822786]
[1641794528502,3.96718929,142.94,142.88,0.79343786]
[1641794531107,3.96718929,142.94,142.88,4.79343786]
[1641794531309,3.96718929,142.94,142.88,0.79343786]
[1641794531506,3.96718929,142.94,142.89,0.79343786]
[1641794531909,3.96718929,142.94,142.88,0.79343786]
[1641794533611,3.96718929,142.94,142.89,4.0]
[1641794534212,3.96718929,142.94,142.9,0.79343786]
[1641794534414,3.96718929,142.94,142.9,4.79343786]
[1641794534612,3.96718929,142.94,142.91,31.66479]
[1641794534813,8.929e-05,142.94,142.91,27.66479]
[1641794535015,34.9469,143.0,142.92,34.222]
[1641794535216,34.9469,143.0,142.92,38.222]
[1641794535814,34.9469,143.0,142.93,4.0]
[1641794536015,34.9469,143.0,142.93,11.433]
[1641794536215,3.96416448,142.99,142.93,12.85349091]
[1641794536417,3.96416448,142.99,142.93,8.85349091]
[1641794536617,3.96416448,142.99,142.94,1.42049091]
[1641794536817,3.96416448,142.99,142.94,29.08528091]
[1641794537420,3.96416448,142.99,142.94,33.08528091]
[1641794537618,3.96416448,142.99,142.95,1.42049091]
[1641794539019,3.96416448,142.99,142.95,5.42049091]
[1641794539420,3.96416448,142.99,142.96,4.0]
[1641794539622,3.96416448,143.01,142.96,5.42049091]
[1641794540021,3.96416448,143.02,142.97,1.42049091]
[1641794540821,3.96416448,143.02,142.96,1.42049091]
[1641794542022,3.96416448,143.02,142.96,5.42049091]
[1641794542722,3.96416448,143.02,142.97,1.42049091]
[1641794542923,3.96416448,143.02,142.97,29.08528091]
[1641794543721,3.96416448,143.02,142.98,1.42049091]
[1641794544724,3.96416448,143.02,142.94,33.41279]
[1641794544926,10.92116448,143.02,142.94,31.66479]
[1641794545123,10.92116448,143.02,142.95,1.45919695]
[1641794545324,12.66916448,143.02,142.95,1.45919695]
[1641794545724,3.96416448,143.01,142.95,1.45919695]
[1641794547528,3.96416448,143.01,142.95,5.45919695]
[1641794547929,3.96416448,143.01,142.96,1.45919695]
[1641794548829,3.96416448,143.02,142.96,1.45919695]
[1641794549131,3.96416448,143.02,142.98,27.66479]
[1641794549331,3.96416448,143.02,142.96,33.27859695]
[1641794549530,4.0,143.01,142.96,1.45919695]
[1641794549731,4.0,143.01,142.94,27.66479]
[1641794549732,4.0,142.99,142.91,32.2507]
[1641794549932,1.748,142.98,142.91,32.2507]
[1641794550334,5.71216448,142.98,142.92,1.45997319]
[1641794550634,3.96416448,142.98,142.92,1.45997319]
[1641794550931,3.96416448,142.97,142.92,1.45997319]
[1641794551231,3.96416448,142.97,142.93,27.66479]
[1641794551632,3.96416448,142.98,142.94,1.45997319]
[1641794554233,3.96416448,142.98,142.94,5.45997319]
[1641794554434,3.96416448,142.99,142.94,12.75097319]
[1641794554833,3.96416448,142.99,142.95,1.45997319]
[1641794555835,3.96416448,142.99,142.94,1.45997319]
[1641794556435,3.96416448,142.99,142.94,5.45997319]
[1641794557136,3.96416448,142.99,142.95,1.45997319]
[1641794558838,3.96416448,142.99,142.95,5.45997319]
[1641794559238,3.96416448,142.99,142.96,27.66479]
[1641794560140,3.96416448,142.99,142.95,4.0]
[1641794560540,3.96416448,142.99,142.96,1.45950225]
[1641794563741,3.96416448,142.99,142.95,1.45950225]
[1641794564843,3.96416448,142.99,142.97,27.66479]
[1641794565545,3.96416448,143.01,142.97,27.66479]
[1641794565745,3.96416448,143.01,142.97,33.85179]
[1641794566349,2.53924117,143.0,142.97,33.85179]
[1641794566748,2.53924117,143.0,142.97,37.85179]
[1641794566948,3.96416448,142.99,142.97,37.85179]
[1641794568349,3.96416448,143.01,142.97,37.85179]
[1641794568551,3.96416448,143.01,142.98,4.0]
[1641794569053,2.53913009,143.0,142.98,4.0]
[1641794569752,3.96416448,142.99,142.98,4.0]
[1641794570651,3.96416448,142.99,142.98,5.45892895]
[1641794571153,14.72573989,143.02,142.98,5.45892895]
[1641794571154,3.96416448,143.01,142.98,5.45892895]
[1641794571356,3.96416448,143.01,142.99,4.0]
[1641794571555,3.96416448,143.01,142.99,5.45892895]
[1641794571755,3.96416448,143.01,142.99,1.45892895]
[1641794571956,3.96416448,143.02,142.99,4.0]
[1641794573058,14.72573989,143.03,143.01,4.0]
[1641794573258,39.27954557,143.07,143.02,4.0]
[1641794573459,39.27954557,143.07,143.04,4.0]
[1641794573659,39.27954557,143.07,143.0,16.59633765]
[1641794574062,2.53681291,143.09,143.01,4.0]
[1641794574262,3.96132446,143.06,143.01,6.28987732]
[1641794574762,3.96132446,143.08,143.02,2.28987732]
[1641794575062,3.96132446,143.08,143.02,32.35644882]
[1641794575262,3.96132446,143.08,143.02,36.35644882]
[1641794575563,3.96132446,143.08,143.02,33.95466732]
[1641794575764,3.96132446,143.09,143.03,2.28987732]
[1641794576165,3.96132446,143.09,143.04,2.28987732]
[1641794576364,2.52944034,143.08,143.04,2.28987732]
[1641794576765,2.52944034,143.08,143.03,6.12]
[1641794576766,3.96132446,143.07,143.03,6.12]
[1641794577166,3.96132446,143.07,143.04,1.45736185]
[1641794578568,3.96132446,143.09,143.04,1.45736185]
[1641794578967,3.96132446,143.09,143.03,1.45736185]
[1641794579169,3.96132446,143.09,143.05,4.0]
[1641794579369,3.96132446,143.09,143.05,10.411]
[1641794579568,3.96132446,143.09,143.06,4.0]
[1641794579970,3.96132446,143.13,143.06,5.45736185]
[1641794580369,3.96132446,143.13,143.07,1.45736185]
[1641794580971,3.96132446,143.13,143.09,27.66479]
[1641794584878,3.96132446,143.13,143.08,7.371]
[1641794585278,3.96132446,143.13,143.09,2.28846263]
[1641794585479,3.96132446,143.13,143.11,27.66479]
[1641794585680,3.96132446,143.13,143.11,37.03779]
[1641794586280,3.96132446,143.14,143.11,37.03779]
[1641794586481,3.96132446,143.14,143.11,9.373]
[1641794586680,3.96132446,143.14,143.09,27.66479]
[1641794586882,5.70732446,143.14,143.09,27.66479]
[1641794587380,3.96132446,143.13,143.09,27.66479]
[1641794587880,3.96132446,143.13,143.1,2.28813241]
[1641794588180,3.96132446,143.13,143.1,11.96413241]
[1641794588382,3.96132446,143.13,143.11,4.0]
[1641794588579,34.8571,143.17,143.11,6.28813241]
[1641794588780,34.8571,143.17,143.11,40.45903241]
[1641794589181,34.8571,143.17,143.11,34.1709]
[1641794589382,34.8571,143.17,143.14,27.66479]
[1641794589582,6.98567936,143.18,143.14,35.27179]
[1641794589980,3.95892419,143.17,143.14,7.607]
[1641794591484,3.95892419,143.17,143.11,34.1709]
[1641794592186,3.95892419,143.17,143.12,29.95231395]
[1641794592585,3.95892419,143.17,143.12,27.66479]
[1641794594088,12.30202348,143.18,143.12,27.66479]
[1641794595189,16.30202348,143.18,143.12,27.66479]
[1641794595789,7.95892419,143.18,143.12,27.66479]
[1641794595990,3.95892419,143.17,143.12,27.66479]
[1641794596189,5.70492419,143.17,143.12,27.66479]
[1641794596390,5.93855247,143.17,143.12,27.66479]
[1641794596792,3.95892419,143.17,143.12,27.66479]
[1641794597393,3.95892419,143.17,143.13,3.44107261]
[1641794597594,3.95892419,143.17,143.13,12.46507261]
[1641794598098,3.95892419,143.17,143.13,9.024]
[1641794601898,5.93827748,143.19,143.13,9.024]
[1641794602701,2.52394875,143.18,143.12,66.04199]
[1641794602901,2.52394875,143.18,143.13,4.0]
[1641794603103,3.95892419,143.17,143.13,13.83162906]
[1641794603503,3.95892419,143.17,143.13,10.391]
[1641794603901,3.95892419,143.17,143.13,6.391]
[1641794604102,3.95892419,143.17,143.14,3.44042353]
[1641794604503,3.95892419,143.19,143.14,3.44042353]
[1641794606610,2.52705657,143.18,143.14,3.44042353]
[1641794607110,3.95892419,143.17,143.14,3.44042353]
[1641794607513,3.95892419,143.17,143.13,3.44042353]
[1641794608513,3.95892419,143.19,143.13,3.44042353]
[1641794609716,2.53074148,143.18,143.13,3.44042353]
[1641794610416,3.95892419,143.17,143.13,3.44042353]
[1641794611320,18.71156594,143.19,143.13,3.44042353]
[1641794611619,3.95892419,143.18,143.13,3.44042353]
[1641794612319,2.53179734,143.17,143.13,3.44042353]
[1641794612923,3.95892419,143.16,143.13,3.44042353]
[1641794614521,3.95892419,143.18,143.13,3.44042353]
[1641794614721,3.95892419,143.18,143.13,16.83942353]
[1641794615122,3.95892419,143.18,143.14,3.44042353]
[1641794615323,2.53202065,143.17,143.14,3.44042353]
[1641794615821,3.95892419,143.16,143.14,3.44042353]
[1641794616822,14.75264175,143.19,143.14,3.44042353]
[1641794618124,3.28867233,143.18,143.14,3.44042353]
[1641794619025,3.28867233,143.18,143.16,4.0]
[1641794619226,39.27954557,143.22,143.16,10.556]
[1641794619426,39.27954557,143.22,143.21,27.66479]
[1641794619627,39.27954557,143.22,143.21,7.644]
[1641794620627,3.02600622,143.22,143.21,7.644]
[1641794620830,3.02600622,143.22,143.19,27.66479]
[1641794621230,3.02600622,143.22,143.18,33.802]
[1641794622329,3.02600622,143.23,143.18,33.802]
[1641794623531,3.02600622,143.23,143.18,61.46679]
[1641794624331,3.02600622,143.23,143.18,67.68879]
[1641794626135,3.02600622,143.23,143.19,3.95719711]
[1641794627035,3.02600622,143.24,143.19,3.95719711]
[1641794627438,3.02600622,143.23,143.19,3.95719711]
[1641794627936,3.02600622,143.22,143.19,3.95719711]
[1641794628336,3.02600622,143.21,143.19,3.95719711]
[1641794628937,3.02600622,143.2,143.19,3.95719711]
[1641794634038,3.02600622,143.2,143.16,3.95719711]
[1641794634641,3.02600622,143.19,143.16,3.95719711]
[1641794635040,3.02600622,143.18,143.16,3.95719711]
[1641794635341,3.02600622,143.17,143.16,3.95719711]
[1641794637543,3.02600622,143.17,143.15,27.66479]
[1641794637946,3.02600622,143.17,143.13,27.66479]
[1641794638144,1.746,143.18,143.13,27.66479]
[1641794638745,1.746,143.18,143.14,3.95852094]
[1641794639145,3.48986799,143.17,143.14,3.95852094]
[1641794641846,3.48986799,143.18,143.14,3.95852094]
[1641794642247,3.48986799,143.17,143.14,3.95852094]
[1641794642647,3.48986799,143.16,143.14,3.95852094]
[1641794643048,3.48986799,143.15,143.14,3.95852094]
[1641794643950,33.6438,143.2,143.14,3.95852094]
[1641794644350,2.30234305,143.19,143.14,3.95852094]